[Event "4NCL Spring GM Round Robin 2024"]
[Site "Peterborough"]
[Date "2024.03.25"]
[Round "5.3"]
[White "Harvey, Marcus R"]
[Black "Makkar, Rajat"]
[Result "1/2-1/2"]
[ECO "B14"]
[WhiteElo "2468"]
[BlackElo "2434"]
[Annotator "TA"]
[PlyCount "104"]
[EventDate "2024.03.22"]
[EventType "tourn"]
[EventCountry "ENG"]
[SourceTitle "playchess.com"]
[Source "ChessBase"]
[SourceQuality "1"]
[TimeControl "5400+30"]

{[%evp 11,104,0,32,22,47,52,54,39,34,50,59,-13,0,0,31,21,40,44,103,92,78,88,89,46,45,40,50,48,46,0,0,0,82,80,57,81,82,0,0,-24,-28,-18,-33,-35,-8,-9,0,0,0,0,0,-8,-8,-8,-8,-1,0,0,0,0,0,0,0,0,15,0,0,0,0,0,0,0,0,0,0,0,0,0,0,0,0,0,0,0,0,0,0,0,0,0,0,0,0,0,0]} 1. c4 {[%emt 0:00:01]} c6 {[%emt 0:01:03]} 2. e4 {[%emt 0:00:06]} d5 {[%emt 0:00:28]} 3. exd5 {[%emt 0:00:11]} cxd5 {[%emt 0:00:16]} 4. d4 {[%emt 0:00:08]} Nf6 {[%emt 0:00:56]} 5. Nc3 {[%emt 0:00:10]} g6 {[%emt 0:00:51]} 6. Qb3 {[%emt 0:00:43]} Nbd7 {[%emt 0:25:13] B14: Caro-Kann (Panow-Angriff).} 7. cxd5 {[%emt 0:00:27]} Nb6 {[%emt 0:01:47]} 8. Bb5+ {[%emt 0:03:31]} Bd7 {[%emt 0:00:54]} 9. Be2 {[%emt 0:04:01]} Bg7 {[%emt 0:06:17]} 10. a4 $146 {[%emt 0:07:07]} ({Predecessor:} 10. Bf3 Bg4 11. Bxg4 Nxg4 12. Nge2 O-O 13. a4 Nf6 14. Nf4 g5 15. Nfe2 h6 16. h4 g4 17. Nf4 a5 18. O-O Qd6 19. Nb5 Qd7 20. d6 exd6 21. Nc3 Ra6 {½-½ Zakhartsov,V (2538)-Rumiantsev,A (2307) Chigorin Memorial 12th 2004 (4)}) 10... a5 {[%emt 0:02:46]} 11. h3 {[%emt 0:07:44]} ({Vorzuziehen ist} 11. Nf3 $14) 11... O-O $11 {[%emt 0:02:36]} 12. Bf3 {[%emt 0:01:44]} Rc8 {[%emt 0:04:12]} 13. Nge2 {[%emt 0:02:23]} Rc4 {[%emt 0:00:48]} 14. O-O {[%emt 0:02:59]} Rb4 {[%emt 0:02:43]} (14... Bf5 $14) 15. Qd1 $16 {[%emt 0:03:23]} Bf5 {[%emt 0:05:51]} 16. b3 {[%emt 0:03:25]} Nbxd5 {[%emt 0:07:24]} 17. Nxd5 {[%emt 0:13:39]} Nxd5 {[%emt 0:00:12]} 18. Bd2 {[%emt 0:00:03]} Bd3 $1 {[%emt 0:02:38]} 19. Bxb4 {[%emt 0:01:23]} (19. Bxd5 {vereinfacht} Bxe2 20. Qxe2 Rxd4 21. Bxf7+ Rxf7 22. Be3) 19... Nxb4 {[%emt 0:00:05]} 20. Bxb7 {[%emt 0:09:25]} (20. Qd2 $1 $14) 20... Qb6 {[%emt 0:04:48]} 21. Bf3 {[%emt 0:00:11]} Bxd4 {[%emt 0:00:18]} (21... Bh6 $11 {hält das Gleichgewicht.}) 22. Nxd4 $16 {[%emt 0:05:32]} Bxf1 {[%emt 0:00:07]} 23. Kxf1 {[%emt 0:01:12]} Rd8 {[%emt 0:00:07] [#]} 24. Qe2 {[%emt 0:00:15]} (24. Qe1 $1 $16) 24... Qxd4 $11 {[%emt 0:06:51]} 25. Rd1 {[%emt 0:01:47]} Qxd1+ $1 {[%emt 0:03:41]} 26. Qxd1 {[%emt 0:00:01]} Rxd1+ {[%emt 0:00:07]} 27. Bxd1 {[%emt 0:00:05]} Kf8 {[%emt 0:01:01]} 28. Ke2 {[%emt 0:00:31]} Ke8 {[%emt 0:00:16]} 29. Ke3 {[%emt 0:00:57]} e5 {[%emt 0:00:46]} 30. Ke4 {[%emt 0:02:01]} f6 {[%emt 0:00:22]} 31. f4 {[%emt 0:03:05]} exf4 {[%emt 0:01:46]} 32. Kd4 {[%emt 0:02:57]} Kd7 {[%emt 0:08:13]} 33. Kc5 {[%emt 0:00:07]} g5 {[%emt 0:00:18]} 34. Kb6 {[%emt 0:02:13]} Nc6 {[%emt 0:00:44]} 35. Bf3 {[%emt 0:04:35]} Ne5 {[%emt 0:00:55]} 36. Be4 {[%emt 0:06:06]} (36. Kxa5 $2 {ist das falsche Schlagen.} Nxf3 37. gxf3 h5 $19) 36... h5 {[%emt 0:00:11]} 37. Kxa5 {[%emt 0:00:06]} g4 {[%emt 0:02:30]} 38. hxg4 {[%emt 0:00:43]} hxg4 {[%emt 0:00:12]} 39. Kb6 {[%emt 0:00:31]} g3 {[%emt 0:03:15]} 40. a5 {[%emt 0:00:20]} Kc8 $1 {[%emt 0:05:44]} 41. a6 {[%emt 0:04:56]} Nd7+ $1 {[%emt 0:00:04]} 42. Ka5 {[%emt 0:00:33]} (42. Kc6 $5 Ne5+ $8 43. Kb6 Nd7+ 44. Ka5 $11) 42... Kb8 {[%emt 0:00:09]} 43. b4 {[%emt 0:00:20]} Ka7 {[%emt 0:01:49]} 44. b5 {[%emt 0:00:09]} Nb6 {[%emt 0:00:16]} 45. Kb4 {[%emt 0:08:22]} Nd7 $1 {[%emt 0:00:01]} 46. Ka5 {[%emt 0:00:43]} (46. Bc6 $5 Ne5 $8 47. Ka5 Nc4+ 48. Kb4 $11) 46... Nb6 {[%emt 0:00:02]} 47. Bc6 {[%emt 0:01:43]} (47. Kb4 $5 Nd7 $8 48. Ka5 $11) 47... Nc4+ {[%emt 0:00:18]} 48. Kb4 {[%emt 0:00:04]} Ne5 $1 {[%emt 0:00:36]} 49. Ka5 {[%emt 0:00:17]} Nc4+ {[%emt 0:00:17]} 50. Kb4 {[%emt 0:00:06]} Ne5 $1 {[%emt 0:00:19]} 51. Ka5 {[%emt 0:00:59]} Nc4+ {[%emt 0:00:07]} 52. Kb4 {[%emt 0:00:04]} Ne5 $1 {[%emt 0:00:24]} 1/2-1/2

[Event "4NCL Spring GM Round Robin 2024"]
[Site "Peterborough"]
[Date "2024.03.25"]
[Round "5.4"]
[White "Cherniaev, Alexander"]
[Black "Royal, Shreyas"]
[Result "0-1"]
[ECO "B51"]
[WhiteElo "2375"]
[BlackElo "2457"]
[Annotator "RC"]
[PlyCount "86"]
[EventDate "2024.03.22"]
[EventType "tourn"]
[EventCountry "ENG"]
[SourceTitle "playchess.com"]
[Source "ChessBase"]
[SourceQuality "1"]
[TimeControl "5400+30"]

1. e4 {[%emt 0:01:51]} c5 {[%emt 0:00:06]} 2. Nf3 {[%emt 0:02:34]} d6 {[%emt 0:00:08]} 3. Bb5+ {[%emt 0:00:45]} Nd7 {[%emt 0:00:08]} 4. Ba4 {[%emt 0:08:52]} Ngf6 {[%emt 0:00:50]} 5. Qe2 {[%emt 0:05:59]} e6 {[%emt 0:03:02]} 6. c3 {[%emt 0:09:08]} a6 {[%emt 0:00:31]} 7. Bc2 {[%emt 0:00:29]} b5 {[%emt 0:00:36]} 8. d4 {[%emt 0:00:14]} Bb7 {[%emt 0:00:50]} 9. O-O {[%emt 0:00:53]} Be7 {[%emt 0:00:41]} 10. Rd1 {[%emt 0:00:46]} Qc7 {[%emt 0:01:21]} 11. Bd3 {[%emt 0:06:52]} O-O {[%emt 0:01:01]} 12. Nbd2 {[%emt 0:00:07]} e5 {[%emt 0:02:29]} 13. d5 {[%emt 0:00:17]} c4 {[%emt 0:00:19]} 14. Bc2 {[%emt 0:00:11]} Rfe8 {[%emt 0:04:18]} 15. h3 {[%emt 0:01:45]} Bf8 {[%emt 0:00:38]} 16. Kh2 {[%emt 0:00:13]} Nb6 {[%emt 0:01:21]} 17. Nf1 {[%emt 0:02:21]} a5 {[%emt 0:02:28]} 18. g4 {[%emt 0:02:36]} g6 {[%emt 0:11:51]} 19. Ng3 {[%emt 0:00:26]} Bg7 {[%emt 0:00:53]} 20. Rg1 {[%emt 0:25:12]} Kh8 {[%emt 0:06:23]} 21. Be3 {[%emt 0:00:24]} Nfxd5 {[%emt 0:01:21]} 22. exd5 {[%emt 0:00:20]} Nxd5 {[%emt 0:00:02]} 23. Qd2 {[%emt 0:03:16]} Nxe3 {[%emt 0:03:18]} 24. Qxe3 {[%emt 0:01:31]} d5 {[%emt 0:00:12]} 25. Rae1 {[%emt 0:02:17]} Bc6 {[%emt 0:00:24]} 26. Qg5 {[%emt 0:07:13]} Re6 {[%emt 0:09:40]} 27. Qd2 {[%emt 0:04:21]} Rf8 {[%emt 0:01:58]} 28. Re2 {[%emt 0:01:03]} d4 {[%emt 0:09:19]} 29. Be4 {[%emt 0:00:34]} d3 {[%emt 0:00:43]} 30. Ree1 {[%emt 0:00:33]} Bxe4 {[%emt 0:07:40]} 31. Rxe4 {[%emt 0:00:30]} Ree8 {[%emt 0:01:19]} 32. g5 {[%emt 0:02:48]} f5 {[%emt 0:00:01]} 33. gxf6 {[%emt 0:00:07]} Rxf6 {[%emt 0:00:04]} 34. Nh4 {[%emt 0:01:35]} Qf7 {[%emt 0:00:34]} 35. Rf1 {[%emt 0:03:48]} Qf8 {[%emt 0:00:42]} 36. Qe1 {[%emt 0:00:16]} Rd8 {[%emt 0:00:57]} 37. Ng2 {[%emt 0:02:03]} Rf3 {[%emt 0:05:14]} 38. Rxe5 {[%emt 0:01:50]} d2 {[%emt 0:06:10]} 39. Qe2 {[%emt 0:00:05]} Bxe5 {[%emt 0:00:04]} 40. Qxe5+ {[%emt 0:00:08]} Kg8 {[%emt 0:00:02]} 41. Qe2 {[%emt 0:01:01]} Qf6 {[%emt 0:03:34]} 42. Ne4 {[%emt 0:03:43]} Qe5+ {[%emt 0:00:10]} 43. Kg1 {[%emt 0:00:22]} d1=Q {[%emt 0:00:32]} 0-1

[Event "4NCL Spring GM Round Robin 2024"]
[Site "Peterborough"]
[Date "2024.03.25"]
[Round "5.5"]
[White "Agdelen, Huseyin Can"]
[Black "Wadsworth, Matthew J"]
[Result "1/2-1/2"]
[ECO "B12"]
[WhiteElo "2408"]
[BlackElo "2450"]
[Annotator "TA"]
[PlyCount "80"]
[EventDate "2024.03.22"]
[EventType "tourn"]
[EventCountry "ENG"]
[SourceTitle "playchess.com"]
[Source "ChessBase"]
[SourceQuality "1"]
[TimeControl "5400+30"]

{[%evp 18,80,0,0,-20,-5,-10,-83,89,97,85,91,80,66,100,101,119,109,122,108,131,118,123,129,141,108,116,127,110,110,198,205,219,129,133,129,135,140,120,76,107,68,215,15,8,10,10,12,21,11,8,14,66,58,67,76,65,56,77,45,34,0,72,0,52]} 1. e4 {[%emt 0:00:08]} c6 {[%emt 0:00:22][%cal Bc7c6,Bc6c5][%mdl 32]} 2. d4 {[%emt 0:02:19]} d5 {[%emt 0:00:07]} 3. e5 {[%emt 0:00:04]} Bf5 {[%emt 0:00:09]} 4. Nc3 {[%emt 0:07:54]} e6 {[%emt 0:01:56]} 5. g4 {[%emt 0:02:21]} Bg6 {[%emt 0:00:07]} 6. Nge2 {[%emt 0:02:12]} c5 {[%emt 0:00:25]} 7. h4 {[%emt 0:01:20]} h5 {[%emt 0:00:23]} 8. Nf4 {[%emt 0:05:14]} Bh7 {[%emt 0:02:22]} 9. Nxh5 {[%emt 0:01:48]} cxd4 {[%emt 0:03:06]} 10. Qxd4 {[%emt 0:02:25]} Nc6 {[%emt 0:01:39][%cal Bb8c6,Bc6a5,Ba5c4][%mdl 32]} 11. Qa4 {[%emt 0:02:17]} a6 {[%emt 0:02:21] next ...b5 is good for Black.} 12. Be3 {[%emt 0:05:57]} (12. Bg5 $1 $11 b5 13. Qf4) 12... Qa5 $2 {[%emt 0:09:12]} (12... b5 $17 13. Qf4 Qc7) 13. Qxa5 $16 {[%emt 0:03:59]} Nxa5 {[%emt 0:00:02]} 14. O-O-O {[%emt 0:06:29] White has more active pieces.} Rc8 {[%emt 0:01:12]} 15. f4 {[%emt 0:07:44]} Ne7 {[%emt 0:06:05][%cal Bg8e7,Be7c6,Bc6b4][%mdl 32]} 16. Bd3 {[%emt 0:03:51]} Nc4 {[%emt 0:01:52]} 17. Bf2 {[%emt 0:01:15]} b5 {[%emt 0:05:09]} 18. Ne2 {[%emt 0:12:54]} Nc6 {[%emt 0:03:37]} 19. Kb1 {[%emt 0:01:49]} Nb4 {[%emt 0:06:00]} 20. Bxh7 {[%emt 0:03:49]} Rxh7 {[%emt 0:00:01]} 21. Nd4 {[%emt 0:00:47]} Be7 {[%emt 0:01:42][%cal Bf8e7,Be7d6,Bd6f4][%mdl 32]} 22. a3 {[%emt 0:08:16]} Nc6 {[%emt 0:00:31]} 23. Nf3 $1 {[%emt 0:00:16]} f6 {[%emt 0:14:18] [#] Against Ng5} (23... b4 $16) 24. exf6 $1 $18 {[%emt 0:00:35]} gxf6 {[%emt 0:00:10]} 25. Ng3 {[%emt 0:00:18]} (25. Rhe1 $18 Kf7 26. Ng3) 25... Bd6 $16 {[%emt 0:01:53]} 26. Rhe1 {[%emt 0:07:59]} Bxf4 {[%emt 0:04:01]} 27. Rxe6+ {[%emt 0:01:09]} Kf7 {[%emt 0:00:07]} 28. Ree1 {[%emt 0:00:55]} N6e5 {[%emt 0:11:05]} 29. Nxe5+ {[%emt 0:02:08]} fxe5 {[%emt 0:00:50] [#]} (29... Bxe5 $14 30. Nf5 (30. Rxd5 Ke6 $16) 30... Bxb2) 30. Rxd5 $2 {[%emt 0:05:45]} (30. Nh5 $1 $18) 30... Ke6 $11 {[%emt 0:07:06]} 31. Rd4 {[%emt 0:00:32]} (31. Rd3 {simplifies} Rxh4 32. Ne2 Rxg4 33. Nxf4+ Rxf4 34. Bd4) 31... Nd2+ {[%emt 0:03:05]} 32. Ka2 {[%emt 0:01:16]} Nf3 $1 {[%emt 0:00:43]} 33. Rxf4 {[%emt 0:00:44]} Nxe1 {[%emt 0:00:01]} 34. Rf5 {[%emt 0:00:12] Ne4 would now be deadly.} Rxh4 {[%emt 0:02:10]} (34... Nxc2 $11 35. Ne4 Re7) 35. Bxe1 $14 {[%emt 0:00:27]} Rxg4 {[%emt 0:00:01]} 36. Rh5 {[%emt 0:00:46] Prevents Rxg3. Hoping for Rh6+.} Rxc2 {[%emt 0:00:53]} 37. Rh6+ {[%emt 0:00:13]} Kd7 $1 {[%emt 0:02:09]} 38. Rh7+ {[%emt 0:00:48]} (38. Rxa6 Rc6 39. Ra7+ Ke6 $18) 38... Ke6 {[%emt 0:01:21]} 39. Rh6+ {[%emt 0:00:05]} Kd7 $1 {[%emt 0:00:28]} 40. Rh7+ {[%emt 0:00:37]} (40. Rxa6 Rc6 41. Ra7+ Ke6 $18) 40... Ke6 $1 {[%emt 0:00:37] Blacks defense is rewarded with a draw.   Weighted Error Value: White=0.22 (precise) /Black=0.24 (precise) .  Missed win:     	White=1     	---        Mistake:       	White=2     	Black=4      Inaccurate:     	White=2     	Black=1      OK:         	White=13    	Black=9      Best:        	White=2     	Black=5      Strong:       	White=2     	Black=4} 1/2-1/2

[Event "4NCL Spring GM Round Robin 2024"]
[Site "Peterborough"]
[Date "2024.03.26"]
[Round "6.1"]
[White "Gumularz, Szymon"]
[Black "Wadsworth, Matthew J"]
[Result "1/2-1/2"]
[ECO "C54"]
[WhiteElo "2590"]
[BlackElo "2450"]
[Annotator "TA"]
[PlyCount "99"]
[EventDate "2024.03.22"]
[EventType "tourn"]
[EventCountry "ENG"]
[SourceTitle "playchess.com"]
[Source "ChessBase"]
[SourceQuality "1"]
[TimeControl "5400+30"]

{[%evp 37,99,45,37,24,57,34,43,41,34,41,39,49,47,42,43,54,59,52,38,52,56,43,42,24,32,0,100,41,197,178,167,58,5106,14,14,14,14,8,18,18,18,0,0,0,0,0,0,0,0,0,0,0,0,0,0,0,0,0,0,0,0,0,8,0]} 1. e4 {[%emt 0:01:11]} e5 {[%emt 0:00:06]} 2. Nf3 {[%emt 0:00:07]} Nc6 {[%emt 0:00:06]} 3. Bc4 {[%emt 0:00:18]} Nf6 {[%emt 0:00:07]} 4. d3 {[%emt 0:00:05]} Bc5 {[%emt 0:00:10]} 5. c3 {[%emt 0:02:16]} d6 {[%emt 0:00:14]} 6. Bg5 {[%emt 0:01:24]} h6 {[%emt 0:02:37]} 7. Bh4 {[%emt 0:00:09]} a6 {[%emt 0:02:15]} 8. a4 {[%emt 0:00:11] C54: Giuoco Piano: 4 c3 Nf6, main lines with 5 d4 and 5 d3.} g5 {[%emt 0:02:10]} 9. Bg3 {[%emt 0:00:08]} Ba7 {[%emt 0:00:19]} 10. Nbd2 {[%emt 0:00:11]} O-O {[%emt 0:03:10]} 11. O-O {[%emt 0:05:03]} Ne7 {[%emt 0:06:21]} 12. d4 {[%emt 0:03:05]} Ng6 $146 {[%emt 0:02:00]} ({Predecessor:} 12... exd4 13. Nxd4 Bg4 14. Qc2 Nh5 15. Rae1 Qd7 16. a5 Kg7 17. f3 Be6 18. Bf2 Bxc4 19. Nxc4 {1-0 Sethuraman,S (2624)-Quesada Perez,Y (2582) Chess24 Banter Blitz Cup 2019 (1.12)}) 13. dxe5 {[%emt 0:02:49]} Nh5 {[%emt 0:00:35]} 14. exd6 {[%emt 0:07:55]} Nxg3 {[%emt 0:00:24]} 15. hxg3 {[%emt 0:00:05]} Qxd6 {[%emt 0:00:18]} 16. Nd4 {[%emt 0:01:09]} Bxd4 {[%emt 0:01:48]} 17. cxd4 {[%emt 0:00:07]} Qxd4 {[%emt 0:00:12]} 18. Qc2 {[%emt 0:01:06]} Bg4 {[%emt 0:05:35]} 19. Nb3 {[%emt 0:00:49]} Qe5 {[%emt 0:02:03]} 20. Rae1 {[%emt 0:10:58]} b5 {[%emt 0:13:02]} 21. Bd5 {[%emt 0:00:49]} bxa4 {[%emt 0:00:32]} 22. Bxa8 {[%emt 0:06:09]} axb3 {[%emt 0:00:24]} 23. Qc6 {[%emt 0:00:04]} Qxb2 {[%emt 0:09:56]} 24. Qxa6 {[%emt 0:00:24]} Ne5 $1 {[%emt 0:04:40]} 25. Bd5 {[%emt 0:06:50]} c6 $1 {[%emt 0:01:21]} 26. Bxc6 {[%emt 0:00:06]} Nxc6 {[%emt 0:07:22]} 27. Qxc6 {[%emt 0:00:07]} Be6 {[%emt 0:03:31]} 28. Rd1 {[%emt 0:01:57]} Rc8 {[%emt 0:03:02]} 29. Qd6 {[%emt 0:06:56]} Qc3 {[%emt 0:03:08]} 30. Kh2 {[%emt 0:11:48]} b2 {[%emt 0:03:51]} 31. f4 {[%emt 0:00:04]} (31. Rb1 $5) 31... Ba2 {[%emt 0:02:23]} (31... Bb3 $11 32. Rd4 gxf4 (32... Qc1 33. Qxh6 Qxf1 34. Qxg5+ Kf8 35. Qh6+ Kg8 36. Qg5+ Kf8 37. Qh6+ Kg8 38. Qg5+ $11) 33. Qxf4 Qxd4 34. Qg4+ Qg7 35. Qxc8+ Kh7) 32. e5 {[%emt 0:12:26]} (32. Qxh6 Qh8 33. Qxh8+ (33. fxg5 Qxh6+ 34. gxh6 Rb8 $17) 33... Kxh8 $15) (32. f5 $1 $16) 32... Qc2 $2 {[%emt 0:05:07]} (32... Bb3 $14) 33. f5 $1 $18 {[%emt 0:00:34]} ({And not} 33. Qxh6 Qh7 34. Qxh7+ (34. fxg5 Rb8 $17) 34... Kxh7 $15) 33... Qc6 {[%emt 0:01:53] [#]} ({Much weaker is} 33... b1=R 34. Rxb1 Bxb1 35. Qxh6) 34. Qe7 {[%emt 0:03:28]} (34. Qb4 $1 $18 {[%cal Rb4b2]} b1=Q 35. Rxb1 Bxb1 36. Qxb1 (36. Rxb1 Qd5 $14)) 34... b1=Q $4 {[%emt 0:16:48][%mdl 8192] [#]} (34... Qe8 $14 35. Qf6 Rb8) 35. Rxb1 $2 {[%emt 0:00:52]} (35. Rd8+ $1 $18 Rxd8 36. Qxd8+ Kh7 37. Rxb1) 35... Bxb1 $11 {[%emt 0:00:00]} 36. Rxb1 {[%emt 0:00:28]} Re8 $1 {[%emt 0:00:00]} 37. Qd6 {[%emt 0:02:13]} Qxd6 {[%emt 0:00:00]} 38. exd6 {[%emt 0:00:01]} g4 {[%emt 0:00:00]} 39. Rd1 {[%emt 0:05:35]} Kf8 {[%emt 0:00:00]} 40. Kg1 {[%emt 0:08:31]} Ra8 {[%emt 0:00:00]} 41. Kf2 {[%emt 0:00:03]} (41. d7 $5 Ke7 $8 42. Kf2 $11) 41... Ke8 {[%emt 0:00:00]} 42. Rh1 {[%emt 0:00:07]} Ra5 {[%emt 0:00:00]} 43. Rh5 {[%emt 0:02:29]} Re5 {[%emt 0:00:00]} 44. Rxh6 {[%emt 0:00:09]} Rxf5+ {[%emt 0:00:00]} 45. Ke3 {[%emt 0:00:07]} Kd7 {[%emt 0:00:00]} 46. Rh4 {[%emt 0:01:07]} Kxd6 {[%emt 0:00:00]} 47. Rxg4 {[%emt 0:00:03]} Ra5 {[%emt 0:00:00]} 48. Re4 {[%emt 0:00:23]} f5 {[%emt 0:00:00]} 49. Re8 {[%emt 0:00:05]} Kd7 {[%emt 0:00:00]} 50. Rb8 {[%emt 0:00:17]} 1/2-1/2

[Event "4NCL Spring GM Round Robin 2024"]
[Site "Peterborough"]
[Date "2024.03.26"]
[Round "6.2"]
[White "Royal, Shreyas"]
[Black "Agdelen, Huseyin Can"]
[Result "0-1"]
[ECO "E94"]
[WhiteElo "2457"]
[BlackElo "2408"]
[Annotator "TA"]
[PlyCount "90"]
[EventDate "2024.03.22"]
[EventType "tourn"]
[EventCountry "ENG"]
[SourceTitle "playchess.com"]
[Source "ChessBase"]
[SourceQuality "1"]
[TimeControl "5400+30"]

{[%evp 15,90,34,56,55,59,56,47,27,41,25,6,15,20,0,19,28,18,0,0,0,19,13,22,13,36,29,20,5,25,0,4,-40,0,0,-2,0,-15,0,-7,0,0,0,12,10,6,0,0,0,-13,-12,131,19,53,-25,-24,-131,-145,-135,-118,-225,-212,-302,-291,-280,-282,-294,-282,-269,-237,-502,-377,-338,-327,-29964,-29966,-6490,-6394]} 1. d4 {[%emt 0:00:03]} Nf6 {[%emt 0:04:46]} 2. c4 {[%emt 0:00:07]} g6 {[%emt 0:00:21]} 3. Nc3 {[%emt 0:00:29]} Bg7 {[%emt 0:00:09]} 4. e4 {[%emt 0:00:07]} d6 {[%emt 0:00:05]} 5. Be2 {[%emt 0:00:38]} O-O {[%emt 0:02:33]} 6. Be3 {[%emt 0:00:07]} Na6 {[%emt 0:01:07]} 7. Nf3 {[%emt 0:00:20]} e5 {[%emt 0:08:49]} 8. O-O {[%emt 0:00:17]} Qe7 {[%emt 0:09:19][%cal Of6e4]} 9. d5 {[%emt 0:05:37]} Ng4 {[%emt 0:06:02]} 10. Bg5 {[%emt 0:00:06]} f6 {[%emt 0:00:21]} 11. Bd2 {[%emt 0:06:14] Weiß steht etwas besser.} f5 {[%emt 0:02:45]} 12. exf5 {[%emt 0:02:13]} gxf5 {[%emt 0:04:44]} 13. Ng5 {[%emt 0:14:12]} h6 {[%emt 0:11:05]} 14. Nh3 {[%emt 0:00:11]} (14. Nge4 $5) 14... Bd7 {[%emt 0:05:59]} 15. f3 {[%emt 0:03:58]} Nf6 {[%emt 0:00:17]} 16. Re1 {[%emt 0:00:32]} c6 {[%emt 0:04:32]} 17. Rc1 {[%emt 0:05:15]} Kh8 {[%emt 0:05:52]} 18. Nf2 {[%emt 0:09:32]} Nc7 {[%emt 0:04:05]} 19. dxc6 {[%emt 0:11:40]} Bxc6 {[%emt 0:05:24]} 20. b4 {[%emt 0:00:37]} b6 {[%emt 0:00:31]} 21. Bf1 {[%emt 0:02:38]} Rad8 {[%emt 0:01:34]} 22. Ne2 {[%emt 0:03:58][%cal Oe2d4]} Nh5 {[%emt 0:02:48]} 23. Ng3 {[%emt 0:04:33]} Qh4 {[%emt 0:00:58]} 24. Nxh5 {[%emt 0:01:00]} Qxh5 {[%emt 0:00:02]} 25. Nd3 {[%emt 0:03:08]} Ne6 {[%emt 0:04:18]} 26. b5 {[%emt 0:02:54]} Bb7 {[%emt 0:00:32]} 27. Nb4 {[%emt 0:00:20]} Bf6 {[%emt 0:04:26]} 28. Nd5 {[%emt 0:04:14]} Bh4 {[%emt 0:00:21]} 29. f4 $1 {[%emt 0:00:38]} Qg6 $132 {[%emt 0:00:48][%mdl 2048] Schwarz hält nicht still} 30. fxe5 {[%emt 0:00:08]} Bxe1 {[%emt 0:01:59]} (30... f4 {sieht schärfer aus.} 31. Bc3 f3 32. exd6+ Kg8) 31. Qxe1 {[%emt 0:00:04]} dxe5 {[%emt 0:03:52]} 32. Qxe5+ {[%emt 0:00:06]} Ng7 {[%emt 0:00:14]} (32... Kh7 $11) 33. Nf4 {[%emt 0:04:57]} ({Günstiger ist} 33. Qc7 $16 Qf7 (33... Bxd5 34. cxd5 Rxd5 35. Rc6 $16) 34. Bxh6) 33... Qf7 $11 {[%emt 0:00:35]} 34. Nd3 {[%emt 0:02:58]} (34. Bc3 $14 Rde8 (34... Rfe8 $2 35. Qf6 $18) 35. Qd6 (35. Qxg7+ Qxg7 36. Ng6+ Kh7 $16)) 34... Be4 {[%emt 0:01:33]} 35. Qg3 {[%emt 0:01:26] [#]} (35. Qc3 $11 {bleibt in der Remisbreite.}) 35... f4 $1 $17 {[%emt 0:00:39][%mdl 512]} 36. Qh3 {[%emt 0:00:28][%cal Od2b4]} (36. Qxf4 $2 {ist das falsche Schlagen.} Bxd3 (36... Qxf4 $2 37. Bxf4 Bxd3 38. Bc7 $19) 37. Qxf7 Rxf7 $19) 36... Qg6 {[%emt 0:03:32] Schwarz steht aktiver.} 37. Nxf4 {[%emt 0:02:34] [#]} (37. Bb4 $17 Rf5 (37... Rxd3 38. Bxd3 Re8 39. Bxe4 $16) 38. Bc3) 37... Qg5 $1 $19 {[%emt 0:00:14]} 38. Qe3 {[%emt 0:03:13] [#]} (38. Be3 {war einen Versuch wert.} Rxf4 39. Bxf4 Qxf4 40. Re1) 38... Rxd2 $1 {[%emt 0:00:08][%mdl 512]} 39. Qxd2 {[%emt 0:00:05] Und g3 würde nun gewinnen.} Rxf4 {[%emt 0:00:12]} 40. Rd1 {[%emt 0:00:16]} Ne6 {[%emt 0:00:46] Es drohte Qd8+} 41. Qc3+ {[%emt 0:00:47]} Qg7 {[%emt 0:00:23]} 42. Qh3 {[%emt 0:00:08]} (42. Qxg7+ Kxg7 43. Re1) 42... Ng5 {[%emt 0:00:42]} 43. Qg3 {[%emt 0:00:39]} Rf8 {[%emt 0:01:06]} 44. Rd6 $2 {[%emt 0:00:39]} (44. a4 $19) 44... Qa1 {[%emt 0:01:09][%csl Ga1,LRa2,LRf1][%cal Rf8f1]} 45. Rxh6+ {[%emt 0:00:04]} Nh7 {[%emt 0:00:04] Gewichteter Fehlerwert: Weiß=0.49/Schwarz=0.15 (sehr präzise) .  Fehler:       	Weiß=7     	Schwarz=1     Ungenau:       	Weiß=1     	Schwarz=1     OK:         	Weiß=10    	Schwarz=18    Bester:       	Weiß=2     	Schwarz=2     Stark:        	Weiß=1     	Schwarz=1     Brilliant:      	---       	Schwarz=2} 0-1